fUST/lending_fUST_20241113
["ID","MTS","AMOUNT","RATE_DAILY","PERIOD"]
[342092186,1731430243752,-3502.28,0.00021917,2]
[342092187,1731430243761,-3502.43,0.00021917,2]
[342092188,1731430243770,-500.0,0.00021917,2]
[342092189,1731430243779,-500.0,0.00021917,2]
[342092190,1731430243789,-500.0,0.00021917,2]
[342092191,1731430243798,-500.0,0.00021917,2]
[342092192,1731430243808,-500.0,0.00021917,2]
[342092193,1731430243818,-500.0,0.00021917,2]
[342092194,1731430243828,-500.0,0.00021917,2]
[342092195,1731430243837,-500.0,0.00021917,2]
[342092196,1731430243847,-500.0,0.00021917,2]
[342092197,1731430243856,-500.0,0.00021917,2]
[342092198,1731430243866,-560.6047984,0.00021917,2]
[342092199,1731430243875,-500.0,0.00021917,2]
[342092200,1731430243885,-500.0,0.00021917,2]
[342092201,1731430243895,-500.0,0.00021917,2]
[342092202,1731430243904,-500.0,0.00021917,2]
[342092203,1731430243913,-500.0,0.00021917,2]
[342092204,1731430243927,-500.0,0.00021917,2]
[342092205,1731430243936,-500.0,0.00021917,2]
[342092206,1731430243947,-500.0,0.00021917,2]
[342092207,1731430243956,-500.0,0.00021917,2]
[342092208,1731430243967,-500.0,0.00021917,2]
[342092209,1731430243977,-509.02768448,0.00021917,2]
[342092210,1731430243987,-500.0,0.00021917,2]
[342092211,1731430243996,-511.51395338,0.00021917,2]
[342092212,1731430244010,-503.10694995,0.00021917,2]
[342092213,1731430244088,-500.0,0.00021917,2]
[342092214,1731430244097,-500.0,0.00021917,2]
[342092215,1731430244107,-514.57492437,0.00021917,2]
[342092216,1731430244117,-536.39645517,0.00021917,2]
[342092217,1731430244126,-500.0,0.00021917,2]
[342092218,1731430244138,-500.0,0.00021917,2]
[342092219,1731430244148,-506.79316161,0.00021917,2]
[342092220,1731430244158,-500.0,0.00021917,2]
[342092221,1731430244167,-550.07790653,0.00021917,2]
[342092222,1731430244176,-500.0,0.00021917,2]
[342092223,1731430244185,-500.0,0.00021917,2]
[342092224,1731430244195,-500.0,0.00021917,2]
[342092225,1731430244205,-2336.0,0.00021917,2]
[342092226,1731430244214,-500.0,0.00021917,2]
[342092227,1731430244224,-527.16017578,0.00021917,2]
[342092228,1731430244233,-319.14011776,0.00021917,2]
[342092229,1731430244242,-500.0,0.00021917,2]
[342092230,1731430244252,-500.0,0.00021917,2]
[342092231,1731430244261,-536.72274279,0.00021917,2]
[342092232,1731430244270,-500.0,0.00021917,2]
[342092233,1731430244280,-500.0,0.00021917,2]
[342092234,1731430244289,-500.0,0.00021917,2]
[342092235,1731430244298,-500.0,0.00021917,2]
[342092236,1731430244307,-500.0,0.00021917,2]
[342092237,1731430244316,-302.02908061,0.00021917,2]
[342092238,1731430244325,-1437.99,0.00021917,2]
[342092239,1731430244335,-500.0,0.00021917,2]
[342092240,1731430244344,-531.29516909,0.00021917,2]
[342092241,1731430244353,-500.0,0.00021917,2]
[342092242,1731430244362,-722.82,0.00021917,2]
[342092243,1731430244371,-500.0,0.00021917,2]
[342092244,1731430244380,-500.0,0.00021917,2]
[342092245,1731430244393,-500.0,0.00021917,2]
[342092246,1731430244402,-500.0,0.00021917,2]
[342092247,1731430244412,-500.0,0.00021917,2]
[342092248,1731430244422,-500.0,0.00021917,2]
[342092249,1731430244432,-500.0,0.00021917,2]
[342092250,1731430244441,-500.0,0.00021917,2]
[342092251,1731430244451,-500.0,0.00021917,2]
[342092252,1731430244460,-500.0,0.00021917,2]
[342092253,1731430244470,-500.0,0.00021917,2]
[342092254,1731430244480,-987.85,0.00021917,2]
[342092255,1731430244489,-500.0,0.00021917,2]
[342092256,1731430244498,-500.0,0.00021917,2]
[342092257,1731430244507,-642.22,0.00021917,2]
[342092258,1731430244517,-500.0,0.00021917,2]
[342092259,1731430244526,-500.0,0.00021917,2]
[342092260,1731430244535,-500.0,0.00021917,2]
[342092261,1731430244545,-500.0,0.00021917,2]
[342092262,1731430244554,-500.0,0.00021917,2]
[342092263,1731430244563,-500.0,0.00021917,2]
[342092264,1731430244573,-500.0,0.00021917,2]
[342092265,1731430244583,-500.0,0.00021917,2]
[342092266,1731430244592,-500.0,0.00021917,2]
[342092267,1731430244602,-500.0,0.00021917,2]
[342092268,1731430244611,-500.0,0.00021917,2]
[342092269,1731430244621,-500.0,0.00021917,2]
[342092270,1731430244630,-500.0,0.00021917,2]
[342092271,1731430244643,-500.0,0.00021917,2]
[342092272,1731430244652,-500.0,0.00021917,2]
[342092273,1731430244662,-291.92,0.00021917,2]
[342092274,1731430244671,-500.0,0.00021917,2]
[342092275,1731430244681,-500.0,0.00021917,2]
[342092276,1731430244691,-517.61473969,0.00021917,2]
[342092277,1731430244700,-500.0,0.00021917,2]
[342092278,1731430244709,-500.0,0.00021917,2]
[342092279,1731430244718,-500.0,0.00021917,2]
[342092280,1731430244728,-500.0,0.00021917,2]
[342092281,1731430244738,-500.0,0.00021917,2]
[342092282,1731430244747,-500.0,0.00021917,2]
[342092283,1731430244756,-500.0,0.00021917,2]
[342092284,1731430244765,-500.0,0.00021917,2]
[342092285,1731430244774,-500.0,0.00021917,2]
[342092286,1731430244784,-500.0,0.00021917,2]
[342092287,1731430244794,-500.0,0.00021917,2]
[342092288,1731430244803,-500.0,0.00021917,2]
[342092289,1731430244813,-500.0,0.00021917,2]
[342092290,1731430244823,-500.0,0.00021917,2]
[342092291,1731430244832,-500.0,0.00021917,2]
[342092292,1731430244841,-500.0,0.00021917,2]
[342092293,1731430244850,-500.0,0.00021917,2]
[342092294,1731430244859,-500.0,0.00021917,2]
[342092295,1731430244868,-535.51903949,0.00021917,2]
[342092296,1731430244877,-511.6832253,0.00021917,2]
[342092297,1731430244889,-615.99,0.00021917,2]
[342092298,1731430244899,-500.0,0.00021917,2]
[342092299,1731430244909,-500.0,0.00021917,2]
[342092300,1731430244920,-500.0,0.00021917,2]
[342092301,1731430244932,-500.0,0.00021917,2]
[342092302,1731430244942,-500.0,0.00021917,2]
[342092303,1731430244952,-754.1,0.00021917,2]
[342092304,1731430244963,-500.0,0.00021917,2]
[342092305,1731430244973,-500.0,0.00021917,2]
[342092306,1731430244985,-2747.17,0.00021917,2]
[342092307,1731430244996,-500.0,0.00021917,2]
[342092308,1731430245009,-500.0,0.00021917,2]
[342092309,1731430245020,-500.0,0.00021917,2]
[342092310,1731430245030,-500.0,0.00021917,2]
[342092311,1731430245041,-500.0,0.00021917,2]
[342092312,1731430245051,-500.0,0.00021917,2]
[342092313,1731430245060,-4257.96,0.00021917,2]
[342092314,1731430245071,-500.0,0.00021917,2]
[342092315,1731430245081,-1337.09,0.00021917,2]
[342092316,1731430245091,-500.0,0.00021917,2]
[342092317,1731430245101,-500.0,0.00021917,2]
[342092318,1731430245111,-500.0,0.00021917,2]
[342092319,1731430245120,-500.0,0.00021917,2]
[342092320,1731430245130,-2766.14,0.00021917,2]
[342092321,1731430245142,-500.0,0.00021917,2]
[342092322,1731430245151,-515.08155479,0.00021917,2]
[342092323,1731430245160,-505.39781857,0.00021917,2]
[342092324,1731430245170,-500.0,0.00021917,2]
[342092325,1731430245179,-500.0,0.00021917,2]
[342092326,1731430245189,-500.0,0.00021917,2]
[342092327,1731430245199,-500.0,0.00021917,2]
[342092328,1731430245209,-500.0,0.00021917,2]
[342092329,1731430245218,-500.0,0.00021917,2]
[342092330,1731430245228,-500.0,0.00021917,2]
[342092331,1731430245238,-500.0,0.00021917,2]
[342092332,1731430245247,-500.0,0.00021917,2]
[342092333,1731430245257,-500.0,0.00021917,2]
[342092334,1731430245266,-500.0,0.00021917,2]
[342092335,1731430245276,-500.0,0.00021917,2]
[342092336,1731430245285,-500.0,0.00021917,2]
[342092337,1731430245294,-511.35399698,0.00021917,2]
[342092338,1731430245371,-500.0,0.00021917,2]
[342092339,1731430245381,-500.0,0.00021917,2]
[342092340,1731430245403,-500.0,0.00021917,2]
[342092341,1731430245414,-500.0,0.00021917,2]
[342092342,1731430245424,-500.0,0.00021917,2]
[342092343,1731430245433,-500.0,0.00021917,2]
[342092344,1731430245443,-566.12,0.00021917,2]
[342092345,1731430245453,-524.53918844,0.00021917,2]
[342092346,1731430245462,-500.0,0.00021917,2]
[342092347,1731430245471,-500.0,0.00021917,2]
[342092348,1731430245480,-500.0,0.00021917,2]
[342092349,1731430245490,-500.0,0.00021917,2]
[342092350,1731430245499,-686.26,0.00021917,2]
[342092351,1731430245509,-500.0,0.00021917,2]
[342092352,1731430245518,-500.0,0.00021917,2]
[342092353,1731430245528,-500.0,0.00021917,2]
[342092354,1731430245537,-557.55525584,0.00021917,2]
[342092355,1731430245547,-500.0,0.00021917,2]
[342092356,1731430245557,-501.25180659,0.00021917,2]
[342092357,1731430245567,-500.0,0.00021917,2]
[342092358,1731430245576,-500.0,0.00021917,2]
[342092359,1731430245586,-500.0,0.00021917,2]
[342092360,1731430245596,-598.00750615,0.00021917,2]
[342092361,1731430245606,-500.0,0.00021917,2]
[342092362,1731430245616,-200.0,0.00021917,2]
[342092363,1731430245626,-532.98889739,0.00021917,2]
[342092364,1731430245639,-500.0,0.00021917,2]
[342092365,1731430245649,-500.0,0.00021917,2]
[342092366,1731430245659,-500.0,0.00021917,2]
[342092367,1731430245670,-500.0,0.00021917,2]
[342092368,1731430245680,-500.0,0.00021917,2]
[342092369,1731430245691,-500.0,0.00021917,2]
[342092370,1731430245702,-500.0,0.00021917,2]
[342092371,1731430245712,-500.0,0.00021917,2]
[342092372,1731430245722,-500.0,0.00021917,2]
[342092374,1731430245732,-500.0,0.00021917,2]
[342092375,1731430245742,-784.0,0.00021917,2]
[342092376,1731430245751,-500.0,0.00021917,2]
[342092377,1731430245761,-511.08047188,0.00021917,2]
[342092378,1731430245771,-500.0,0.00021917,2]
[342092379,1731430245782,-500.0,0.00021917,2]
[342092382,1731430245792,-500.0,0.00021917,2]
[342092384,1731430245801,-500.0,0.00021917,2]
[342092386,1731430245811,-909.65,0.00021917,2]
[342092388,1731430245821,-659.91,0.00021917,2]
[342092390,1731430245831,-500.0,0.00021917,2]
[342092392,1731430245841,-500.0,0.00021917,2]
[342092393,1731430245851,-500.0,0.00021917,2]
[342092395,1731430245860,-500.0,0.00021917,2]
[342092396,1731430245870,-500.0,0.00021917,2]
[342092397,1731430245881,-500.0,0.00021917,2]
[342092398,1731430245897,-500.0,0.00021917,2]
[342092399,1731430245907,-500.0,0.00021917,2]
[342092400,1731430245918,-500.0,0.00021917,2]
[342092401,1731430245931,-500.0,0.00021917,2]
[342092402,1731430245941,-543.76928224,0.00021917,2]
[342092403,1731430245951,-500.0,0.00021917,2]
[342092404,1731430245963,-500.0,0.00021917,2]
[342092406,1731430245973,-500.0,0.00021917,2]
[342092407,1731430245984,-500.0,0.00021917,2]
[342092408,1731430245995,-500.0,0.00021917,2]
[342092409,1731430246007,-500.0,0.00021917,2]
[342092410,1731430246018,-500.88286344,0.00021917,2]
[342092412,1731430246028,-500.0,0.00021917,2]
[342092413,1731430246038,-500.0,0.00021917,2]
[342092414,1731430246049,-500.0,0.00021917,2]
[342092415,1731430246059,-500.0,0.00021917,2]
[342092416,1731430246070,-500.0,0.00021917,2]
[342092417,1731430246082,-500.0,0.00021917,2]
[342092418,1731430246093,-500.0,0.00021917,2]
[342092419,1731430246104,-510.70399213,0.00021917,2]
[342092420,1731430246114,-500.0,0.00021917,2]
[342092421,1731430246126,-500.0,0.00021917,2]
[342092422,1731430246137,-500.0,0.00021917,2]
[342092423,1731430246147,-500.0,0.00021917,2]
[342092424,1731430246159,-500.0,0.00021917,2]
[342092425,1731430246170,-500.0,0.00021917,2]
[342092426,1731430246180,-500.0,0.00021917,2]
[342092427,1731430246191,-500.0,0.00021917,2]
[342092429,1731430246201,-500.0,0.00021917,2]
[342092431,1731430246211,-500.0,0.00021917,2]
[342092432,1731430246222,-526.07605612,0.00021917,2]
[342092433,1731430246233,-500.0,0.00021917,2]
[342092434,1731430246243,-3413.91,0.00021917,2]
[342092435,1731430246253,-500.0,0.00021917,2]
[342092436,1731430246264,-500.0,0.00021917,2]
[342092437,1731430246274,-500.0,0.00021917,2]
[342092438,1731430246285,-500.0,0.00021917,2]
[342092439,1731430246295,-500.0,0.00021917,2]
[342092440,1731430246306,-500.0,0.00021917,2]
[342092441,1731430246317,-500.0,0.00021917,2]
[342092442,1731430246327,-500.0,0.00021917,2]
[342092443,1731430246338,-500.0,0.00021917,2]
[342092444,1731430246348,-226.67395534,0.00021917,2]
[342092445,1731430246359,-500.0,0.00021917,2]
[342092446,1731430246370,-500.0,0.00021917,2]
[342092447,1731430246381,-500.0,0.00021917,2]
[342092448,1731430246394,-500.0,0.00021917,2]
[342092449,1731430246404,-500.0,0.00021917,2]
[342092450,1731430246414,-500.0,0.00021917,2]
[342092451,1731430246424,-638.6253491,0.00021917,2]
[342092452,1731430246435,-500.0,0.00021917,2]
[342092453,1731430246446,-500.0,0.00021917,2]
[342092454,1731430246456,-500.0,0.00021917,2]
[342092455,1731430246466,-500.0,0.00021917,2]
[342092456,1731430246478,-500.0,0.00021917,2]
[342092457,1731430246489,-500.0,0.00021917,2]
[342092458,1731430246500,-11747.75,0.00021917,2]
[342092459,1731430246509,-784.59,0.00021917,2]
[342092460,1731430246519,-500.0,0.00021917,2]
[342092461,1731430246530,-500.0,0.00021917,2]
[342092462,1731430246541,-166.666666,0.00021918,2]
[342092463,1731430246552,-500.0,0.00021918,2]
[342092464,1731430246563,-500.0,0.00021918,2]
[342092465,1731430246574,-584.21964335,0.00021918,2]
[342092466,1731430246647,-4360.06466085,0.00021919,2]
[342092467,1731430246658,-3000.0,0.0002192,2]
[342092468,1731430246669,-3000.0,0.0002193,2]
[342092469,1731430246680,-3601.0981881,0.00021931,2]
[342092470,1731430246690,-3000.0,0.0002194,2]
[342092471,1731430246701,-3000.0,0.0002195,2]
[342092472,1731430246711,-3000.0,0.0002196,2]
[342092473,1731430246723,-3000.0,0.0002197,2]
[342092474,1731430246734,-87.67468438,0.00021973,2]
[342092475,1731430246977,-518.09406708,0.00021973,2]
[342092476,1731430246988,-155.76523138,0.00021973,2]
[342092477,1731430247010,-344.25795569,0.00021973,2]
[342092478,1731430247026,-161.74770627,0.00021973,2]
[342092479,1731430247038,-500.0,0.00021973,2]
[342092480,1731430247050,-563.40491293,0.00021973,2]
[342092481,1731430247062,-500.0,0.00021973,2]
[342092482,1731430247074,-256.52329473,0.00021973,2]
[342092483,1731430247085,-500.0,0.00021973,2]
[342092484,1731430247097,-102.74326266,0.00021973,2]
[342092485,1731430247112,-142.61957834,0.00021973,2]
[342092486,1731430247124,-500.0,0.00021973,2]
[342092487,1731430247136,-504.61202971,0.00021973,2]
[342092488,1731430247150,-500.0,0.00021973,2]
[342092489,1731430247161,-266.06641001,0.00021973,2]
[342092490,1731430247200,-233.93358999,0.00021973,2]
[342092491,1731430247211,-500.0,0.00021973,2]
[342092492,1731430247222,-500.0,0.00021973,2]
[342092493,1731430247234,-500.0,0.00021973,2]
[342092494,1731430247245,-500.0,0.00021973,2]
[342092495,1731430247256,-500.0,0.00021973,2]
[342092496,1731430247267,-500.0,0.00021973,2]
[342092497,1731430247278,-500.0,0.00021973,2]
[342092498,1731430247290,-162.63906102,0.00021973,2]
[342092499,1731430247300,-500.0,0.00021973,2]
[342092500,1731430247311,-500.0,0.00021973,2]
[342092501,1731430247322,-500.39089912,0.00021973,2]
[342092502,1731430247333,-321.38725946,0.00021973,2]
[342092503,1731430247344,-500.0,0.00021973,2]
[342092504,1731430247355,-500.0,0.00021973,2]
[342092505,1731430247366,-500.05446171,0.00021973,2]
[342092506,1731430247376,-500.0,0.00021973,2]
[342092507,1731430247389,-500.0,0.00021973,2]
[342092508,1731430247399,-500.0,0.00021973,2]
[342092509,1731430247410,-500.0,0.00021973,2]
[342092510,1731430247421,-500.0,0.00021973,2]
[342092511,1731430247431,-500.0,0.00021973,2]
[342092512,1731430247441,-500.0,0.00021973,2]
[342092513,1731430247451,-500.0,0.00021973,2]
[342092514,1731430247461,-500.0,0.00021973,2]
[342092515,1731430247472,-622.74103554,0.00021973,2]
[342092516,1731430247483,-500.0,0.00021973,2]
[342092517,1731430247494,-3000.0,0.0002198,2]
[342092518,1731430247504,-3000.0,0.0002199,2]
[342092519,1731430247514,-161.0,0.00022,2]
[342092520,1731430247524,-159.0,0.00022,2]
[342092521,1731430247534,-167.0,0.00022,2]
[342092522,1731430247544,-3000.0,0.00022,2]
[342092523,1731430247554,-3000.0,0.0002201,2]
[342092524,1731430247564,-3601.0981881,0.00022011,2]
[342092525,1731430247580,-3000.0,0.0002202,2]
[342092526,1731430247590,-3000.0,0.0002203,2]
[342092527,1731430247598,-3000.0,0.0002204,2]
[342092528,1731430247707,-3000.0,0.0002205,2]
[342092529,1731430247717,-3000.0,0.0002206,2]
[342092530,1731430247727,-3000.0,0.0002207,2]
[342092531,1731430247737,-3000.0,0.0002208,2]
[342092532,1731430247746,-420.0,0.00022081,2]
[342092533,1731430247756,-3000.0,0.0002209,2]
[342092534,1731430247766,-363.80856673,0.00022091,7]
[342092535,1731430247776,-3601.0981881,0.00022091,2]
[342092536,1731430247785,-3000.0,0.000221,2]
[342092537,1731430247795,-3000.0,0.0002211,2]
[342092538,1731430247805,-3000.0,0.0002212,2]
[342092539,1731430247815,-3000.0,0.0002213,2]
[342092540,1731430247829,-3000.0,0.0002214,2]
[342092541,1731430247838,-4841.709987,0.0002215,2]
[342092542,1731430247849,-500.0,0.00022173,2]
[342092543,1731430247859,-500.0,0.00022173,2]
[342092544,1731430247869,-500.0,0.00022173,2]
[342092545,1731430247878,-500.54307479,0.00022173,2]
[342092546,1731430247892,-500.0,0.00022173,2]
[342092547,1731430247901,-500.0,0.00022173,2]
[342092548,1731430247911,-368.00158629,0.00022173,2]
[342092549,1731430247921,-500.0,0.00022173,2]
[342092550,1731430247933,-500.0,0.00022173,2]
[342092551,1731430247943,-500.0,0.00022173,2]
[342092552,1731430247952,-500.0,0.00022173,2]
[342092553,1731430247962,-500.0,0.00022173,2]
[342092554,1731430247973,-500.0,0.00022173,2]
[342092555,1731430247983,-500.0,0.00022173,2]
[342092556,1731430247993,-500.0,0.00022173,2]
[342092557,1731430248005,-160.8790433,0.00022173,2]
[342092558,1731430248016,-500.0,0.00022173,2]
[342092559,1731430248027,-236.95787543,0.00022173,2]
[342092560,1731430248037,-500.0,0.00022173,2]
[342092561,1731430248047,-500.0,0.00022173,2]
[342092562,1731430248058,-500.0,0.00022191,2]
[342092563,1731430248069,-20.75718341,0.00022191,2]
[342092564,1731430248206,-455.68547256,0.00021917,2]
[342092565,1731430248398,-500.0,0.00021867,2]
[342092566,1731430248408,-500.0,0.00021867,2]
[342092567,1731430248418,-500.0,0.00021867,2]
[342092568,1731430248427,-500.0,0.00021867,2]
[342092569,1731430248437,-475.05305854,0.00021867,2]
[342092570,1731430248449,-24.94694146,0.00021867,2]
[342092571,1731430248458,-500.0,0.00021867,2]
[342092572,1731430248468,-500.0,0.00021867,2]
[342092573,1731430248477,-500.0,0.00021867,2]
[342092574,1731430248486,-500.0,0.00021867,2]
[342092575,1731430248496,-114.93379641,0.00021917,2]
[342092576,1731430248505,-500.0,0.00021917,2]
[342092577,1731430248514,-203.8219064,0.00021917,2]
[342092578,1731430248524,-500.0,0.00021917,2]
[342092579,1731430248533,-638.74762825,0.00021917,2]
[342092580,1731430248543,-479.24281659,0.00022191,2]
[342092581,1731430248552,-628.2960495,0.00022191,2]
[342092582,1731430248561,-500.0,0.00022191,2]
[342092583,1731430248571,-500.0,0.00022191,2]
[342092584,1731430248581,-500.0,0.00022191,2]
[342092585,1731430248591,-500.0,0.00022191,2]
[342092586,1731430248601,-598.8787653,0.00022191,2]
[342092587,1731430248610,-500.0,0.00022191,2]
[342092588,1731430248620,-500.0,0.00022191,2]
[342092589,1731430248629,-500.0,0.00022191,2]
[342092590,1731430248643,-500.0,0.00022191,2]
[342092591,1731430248653,-503.82756177,0.00022191,2]
[342092592,1731430248664,-625.25911648,0.00022191,2]
[342092593,1731430248674,-500.0,0.00022191,2]
[342092594,1731430248743,-500.0,0.00022191,2]
[342092595,1731430248761,-513.84521314,0.00022191,2]
[342092596,1731430248771,-539.13987948,0.00022191,2]
[342092597,1731430248781,-500.0,0.00022191,2]
[342092598,1731430248791,-500.0,0.00022191,2]
[342092599,1731430248801,-500.0,0.00022191,2]
[342092600,1731430248812,-500.0,0.00022191,2]
[342092601,1731430248821,-500.0,0.00022191,2]
[342092602,1731430248831,-500.0,0.00022191,2]
[342092603,1731430248840,-500.0,0.00022191,2]
[342092604,1731430248850,-500.0,0.00022191,2]
[342092605,1731430248859,-500.0,0.00022191,2]
[342092606,1731430248869,-97.17476428,0.00022191,2]
[342092611,1731430507666,163.8824595,0.00013973,2]
[342092625,1731430833585,1695.152828,0.00020005,2]
[342092626,1731430900785,3391.390953,0.00020042,2]
[342092629,1731430996805,-1169.27083333,0.00020193,2]
[342092630,1731430996833,-197.719879,0.00020222,2]
[342092631,1731430996860,-390.1319291,0.00020581,2]
[342092632,1731430996887,-1695.152828,0.0002069,2]
[342092633,1731430996914,-300.0,0.00020888,2]
[342092634,1731430996942,-300.0,0.00020888,2]
[342092635,1731430996974,-24900.0,0.00020889,2]
[342092636,1731430997000,-180.02125545,0.00020924,2]
[342092637,1731430997027,-2918.0,0.00021024,2]
[342092638,1731430997053,-2002.0142723,0.00021219,2]
[342092639,1731430997081,-1695.152828,0.00021375,2]
[342092640,1731430997108,-1156.48711199,0.00021718,2]
[342092641,1731430997136,-486.79364302,0.00021768,2]
[342092642,1731430997163,-726.52,0.00021804,3]
[342092643,1731430997195,-605.43,0.00021804,3]
[342092644,1731430997226,-302.71,0.00021804,3]
[342092645,1731430997258,-151.36,0.00021804,3]
[342092646,1731430997289,-454.08,0.00021804,3]
[342092647,1731430997316,-1156.48711197,0.00021811,2]
[342092648,1731430997346,-540.76360326,0.00021813,2]
[342092649,1731430997375,-500.0,0.00021813,2]
[342092650,1731430997402,-209.68165268,0.00021813,2]
[342092651,1731430997431,-500.0,0.00021813,2]
[342092652,1731430997460,-500.0,0.00021813,2]
[342092653,1731430997487,-299.99865988,0.00021813,2]
[342092654,1731430997514,-419.06976188,0.00021813,2]
[342092655,1731430997541,-171.11462272,0.00021813,2]
[342092656,1731430997569,-500.0,0.00021813,2]
[342092657,1731430997597,-500.0,0.00021813,2]
[342092658,1731430997630,-500.0,0.00021813,2]
[342092659,1731430997658,-500.0,0.00021813,2]
[342092660,1731430997686,-500.0,0.00021813,2]
[342092661,1731430997717,-574.23302012,0.00021813,2]
[342092662,1731430997746,-500.0,0.00021813,2]
[342092663,1731430997774,-500.0,0.00021813,2]
[342092664,1731430997803,-500.0,0.00021813,2]
[342092665,1731430997833,-500.0,0.00021813,2]
[342092666,1731430997860,-500.0,0.00021813,2]
[342092667,1731430997889,-599.65928178,0.00021813,2]
[342092668,1731430997919,-500.0,0.00021813,2]
[342092669,1731430997947,-500.0,0.00021813,2]
[342092670,1731430997977,-500.0,0.00021813,2]
[342092671,1731430998096,-500.0,0.00021813,2]
[342092672,1731430998126,-500.0,0.00021813,2]
[342092673,1731430998158,-500.0,0.00021813,2]
[342092674,1731430998193,-500.0,0.00021813,2]
[342092675,1731430998227,-500.0,0.00021813,2]
[342092676,1731430998259,-500.0,0.00021813,2]
[342092677,1731430998290,-500.0,0.00021813,2]
[342092678,1731430998319,-500.0,0.00021813,2]
[342092679,1731430998349,-500.0,0.00021813,2]
[342092680,1731430998377,-500.0,0.00021813,2]
[342092681,1731430998408,-500.0,0.00021813,2]
[342092682,1731430998438,-500.0,0.00021813,2]
[342092683,1731430998471,-500.0,0.00021813,2]
[342092684,1731430998501,-504.82856543,0.00021813,2]
[342092685,1731430998530,-500.0,0.00021813,2]
[342092686,1731430998560,-500.0,0.00021813,2]
[342092687,1731430998589,-500.0,0.00021813,2]
[342092688,1731430998619,-500.0,0.00021813,2]
[342092689,1731430998648,-500.0,0.00021813,2]
[342092690,1731430998677,-500.0,0.00021813,2]
[342092691,1731430998706,-500.0,0.00021813,2]
[342092692,1731430998739,-500.0,0.00021813,2]
[342092693,1731430998769,-500.0,0.00021813,2]
[342092694,1731430998799,-500.0,0.00021813,2]
[342092695,1731430998828,-500.0,0.00021813,2]
[342092696,1731430998858,-500.0,0.00021813,2]
[342092697,1731430998888,-500.0,0.00021813,2]
[342092698,1731430998917,-500.0,0.00021813,2]
[342092699,1731430998945,-500.0,0.00021813,2]
[342092700,1731430998975,-500.0,0.00021813,2]
[342092701,1731430999005,-500.0,0.00021813,2]
[342092702,1731431000621,-406.63828018,0.00021813,2]
[342092707,1731431046974,491.85,0.00027,60]
[342092708,1731431103155,43176.60513885,0.00025,120]
[342092723,1731431175191,-1169.27083333,0.00020208,2]
[342092724,1731431175233,-1114.8750218,0.00020882,2]
[342092725,1731431175272,-300.0,0.00021816,2]
[342092726,1731431175311,-1631.89268593,0.00021817,2]
[342092727,1731431175348,-37953.90968867,0.00021817,2]
[342092728,1731431175386,-1000.0,0.00021817,2]
[342092729,1731431175424,-3000.0,0.000219,2]
[342092730,1731431175462,-1156.48711197,0.00021905,2]
[342092731,1731431175499,-595.34,0.00021907,3]
[342092732,1731431175536,-595.34,0.00021907,3]
[342092733,1731431175573,-500.0,0.00021909,2]
[342092734,1731431175609,-500.0,0.00021909,2]
[342092735,1731431175647,-500.0,0.00021909,2]